fUST/lending_fUST_20250720
["ID","MTS","AMOUNT","RATE_DAILY","PERIOD"]
[373493096,1753021852993,-1296.1,0.0001863,2]
[373493098,1753021853002,-460.0,0.0001863,2]
[373493100,1753021853012,-460.0,0.0001863,2]
[373493102,1753021853022,-460.0,0.0001863,2]
[373493104,1753021853031,-460.0,0.0001863,2]
[373493106,1753021853041,-460.0,0.0001863,2]
[373493108,1753021853051,-460.0,0.0001863,2]
[373493110,1753021853062,-460.0,0.0001863,2]
[373493112,1753021853072,-460.0,0.0001863,2]
[373493114,1753021853083,-460.0,0.0001863,2]
[373493116,1753021853095,-1251.21,0.0001863,2]
[373493118,1753021853106,-460.0,0.0001863,2]
[373493120,1753021853117,-460.0,0.0001863,2]
[373493122,1753021853126,-460.0,0.0001863,2]
[373493124,1753021853137,-1244.55,0.0001863,2]
[373493126,1753021853147,-460.0,0.0001863,2]
[373493128,1753021853156,-2118.56,0.0001863,2]
[373493130,1753021853166,-460.0,0.0001863,2]
[373493132,1753021853175,-569.87,0.0001863,2]
[373493134,1753021853185,-316.70427041,0.0001863,2]
[373493136,1753021853194,-2352.75,0.0001863,2]
[373493138,1753021853203,-460.0,0.0001863,2]
[373493140,1753021853213,-460.0,0.0001863,2]
[373493142,1753021853222,-460.0,0.0001863,2]
[373493143,1753021853231,-460.0,0.0001863,2]
[373493144,1753021853241,-460.0,0.0001863,2]
[373493145,1753021853251,-472.49,0.0001863,2]
[373493146,1753021853260,-460.0,0.0001863,2]
[373493147,1753021853270,-745.04,0.0001863,2]
[373493148,1753021853280,-460.0,0.0001863,2]
[373493149,1753021853290,-460.0,0.0001863,2]
[373493150,1753021853300,-460.0,0.0001863,2]
[373493151,1753021853310,-460.0,0.0001863,2]
[373493152,1753021853319,-238.42118949,0.0001863,2]
[373493153,1753021853329,-1885.51,0.0001863,2]
[373493154,1753021853339,-460.0,0.0001863,2]
[373493155,1753021853349,-881.77,0.0001863,2]
[373493156,1753021853358,-460.0,0.0001863,2]
[373493157,1753021853368,-460.0,0.0001863,2]
[373493158,1753021853378,-460.0,0.0001863,2]
[373493159,1753021853387,-460.0,0.0001863,2]
[373493161,1753021853397,-1238.54,0.0001863,2]
[373493163,1753021853407,-460.0,0.0001863,2]
[373493165,1753021853417,-460.0,0.0001863,2]
[373493167,1753021853427,-460.0,0.0001863,2]
[373493169,1753021853436,-2303.99,0.0001863,2]
[373493171,1753021853446,-570.6,0.0001863,2]
[373493173,1753021853455,-481.67,0.0001863,2]
[373493175,1753021853464,-497.66,0.0001863,2]
[373493177,1753021853474,-631.63,0.0001863,2]
[373493179,1753021853484,-460.0,0.0001863,2]
[373493181,1753021853494,-485.45,0.0001863,2]
[373493183,1753021853504,-401.93,0.0001863,2]
[373493185,1753021853514,-506.98997114,0.0001863,2]
[373493187,1753021853523,-460.0,0.0001863,2]
[373493189,1753021853533,-460.0,0.0001863,2]
[373493191,1753021853542,-1438.23,0.0001863,2]
[373493193,1753021853552,-542.2,0.0001863,2]
[373493195,1753021853561,-460.0,0.0001863,2]
[373493197,1753021853571,-512.76,0.0001863,2]
[373493199,1753021853580,-460.0,0.0001863,2]
[373493201,1753021853590,-460.0,0.0001863,2]
[373493203,1753021853599,-1959.4,0.0001863,2]
[373493205,1753021853609,-460.0,0.0001863,2]
[373493207,1753021853619,-460.0,0.0001863,2]
[373493209,1753021853628,-618.55,0.0001863,2]
[373493211,1753021853638,-460.0,0.0001863,2]
[373493213,1753021853647,-507.14,0.0001863,2]
[373493215,1753021853657,-460.0,0.0001863,2]
[373493217,1753021853668,-460.0,0.0001863,2]
[373493219,1753021853678,-151.0,0.000187,2]
[373493221,1753021853687,-501.80415761,0.00018737,2]
[373493223,1753021853697,-500.0,0.00018737,2]
[373493225,1753021853707,-501.11000924,0.00018737,2]
[373493227,1753021853716,-1000.0,0.00018737,2]
[373493229,1753021853726,-500.0,0.00018737,2]
[373493231,1753021853737,-500.0,0.00018737,2]
[373493233,1753021853746,-500.0,0.00018822,2]
[373493235,1753021853757,-500.0,0.00018822,2]
[373493237,1753021853766,-5491.95153547,0.00018831,2]
[373493239,1753021853775,-2148.84444074,0.00018878,2]
[373493241,1753021853785,-312.99209807,0.000189,2]
[373493243,1753021853794,-303.08182694,0.000189,2]
[373493245,1753021853804,-439.80618325,0.00018904,2]
[373493247,1753021853813,-830.65,0.00018904,2]
[373493249,1753021853824,-796.04,0.00018904,2]
[373493251,1753021853833,-3955.89,0.00018904,2]
[373493253,1753021853842,-1823.23,0.00018904,2]
[373493255,1753021853853,-400.19139532,0.00018904,2]
[373493257,1753021853862,-460.0,0.00018904,2]
[373493259,1753021853872,-460.0,0.00018904,2]
[373493261,1753021853881,-796.05,0.00018904,2]
[373493263,1753021853891,-460.0,0.00018904,2]
[373493265,1753021853901,-460.0,0.00018904,2]
[373493267,1753021853911,-3230.43,0.00018904,2]
[373493269,1753021853921,-1296.1,0.00018904,2]
[373493271,1753021853931,-581.75027151,0.00018904,2]
[373493273,1753021853941,-460.0,0.00018904,2]
[373493275,1753021853951,-460.0,0.00018904,2]
[373493277,1753021853961,-460.0,0.00018904,2]
[373493279,1753021853970,-460.0,0.00018904,2]
[373493281,1753021853979,-589.52704109,0.00018904,2]
[373493283,1753021853989,-460.0,0.00018904,2]
[373493285,1753021853999,-460.0,0.00018904,2]
[373493287,1753021854009,-460.0,0.00018904,2]
[373493289,1753021854019,-1251.21,0.00018904,2]
[373493291,1753021854028,-460.0,0.00018904,2]
[373493293,1753021854038,-460.0,0.00018904,2]
[373493295,1753021854047,-460.0,0.00018904,2]
[373493296,1753021854061,-1244.55,0.00018904,2]
[373493298,1753021854070,-460.0,0.00018904,2]
[373493301,1753021854081,-2118.56,0.00018904,2]
[373493302,1753021854090,-460.0,0.00018904,2]
[373493305,1753021854103,-569.87,0.00018904,2]
[373493307,1753021854112,-2352.75,0.00018904,2]
[373493309,1753021854122,-460.0,0.00018904,2]
[373493311,1753021854132,-460.0,0.00018904,2]
[373493312,1753021854141,-460.0,0.00018904,2]
[373493314,1753021854151,-460.0,0.00018904,2]
[373493316,1753021854161,-460.0,0.00018904,2]
[373493318,1753021854171,-472.49,0.00018904,2]
[373493320,1753021854180,-460.0,0.00018904,2]
[373493322,1753021854190,-745.04,0.00018904,2]
[373493325,1753021854200,-460.0,0.00018904,2]
[373493327,1753021854210,-460.0,0.00018904,2]
[373493328,1753021854220,-460.0,0.00018904,2]
[373493330,1753021854229,-460.0,0.00018904,2]
[373493335,1753021854272,-1885.51,0.00018904,2]
[373493337,1753021854282,-460.0,0.00018904,2]
[373493339,1753021854292,-881.77,0.00018904,2]
[373493341,1753021854301,-460.0,0.00018904,2]
[373493343,1753021854310,-460.0,0.00018904,2]
[373493345,1753021854320,-460.0,0.00018904,2]
[373493347,1753021854329,-460.0,0.00018904,2]
[373493349,1753021854339,-1238.54,0.00018904,2]
[373493351,1753021854348,-460.0,0.00018904,2]
[373493353,1753021854357,-460.0,0.00018904,2]
[373493355,1753021854367,-460.0,0.00018904,2]
[373493357,1753021854376,-2303.99,0.00018904,2]
[373493359,1753021854385,-570.6,0.00018904,2]
[373493361,1753021854395,-481.67,0.00018904,2]
[373493363,1753021854405,-497.66,0.00018904,2]
[373493365,1753021854414,-631.63,0.00018904,2]
[373493367,1753021854424,-460.0,0.00018904,2]
[373493369,1753021854433,-485.45,0.00018904,2]
[373493371,1753021854442,-460.0,0.00018904,2]
[373493373,1753021854452,-460.0,0.00018904,2]
[373493375,1753021854461,-1438.23,0.00018904,2]
[373493377,1753021854471,-542.2,0.00018904,2]
[373493379,1753021854480,-460.0,0.00018904,2]
[373493381,1753021854490,-512.76,0.00018904,2]
[373493383,1753021854499,-460.0,0.00018904,2]
[373493385,1753021854509,-460.0,0.00018904,2]
[373493387,1753021854519,-1959.4,0.00018904,2]
[373493389,1753021854528,-471.94,0.00018904,2]
[373493391,1753021854539,-460.0,0.00018904,2]
[373493393,1753021854548,-618.55,0.00018904,2]
[373493394,1753021854557,-460.0,0.00018904,2]
[373493396,1753021854567,-507.14,0.00018904,2]
[373493398,1753021854576,-460.0,0.00018904,2]
[373493401,1753021854586,-460.0,0.00018904,2]
[373493403,1753021854596,-411.86,0.00018938,2]
[373493404,1753021854605,-160.0,0.00018967,2]
[373493406,1753021854615,-151.0,0.00019,2]
[373493408,1753021854625,-303.08182694,0.00019089,2]
[373493410,1753021854634,-5491.95153547,0.00019107,2]
[373493412,1753021854644,-231.28369723,0.00019125,2]
[373493415,1753021854654,-796.04,0.00019178,2]
[373493416,1753021854663,-3955.89,0.00019178,2]
[373493418,1753021854673,-1823.23,0.00019178,2]
[373493420,1753021854682,-460.0,0.00019178,2]
[373493422,1753021854692,-460.0,0.00019178,2]
[373493424,1753021854701,-796.05,0.00019178,2]
[373493426,1753021854711,-460.0,0.00019178,2]
[373493428,1753021854721,-460.0,0.00019178,2]
[373493430,1753021854730,-3230.43,0.00019178,2]
[373493432,1753021854739,-1296.1,0.00019178,2]
[373493434,1753021854748,-460.0,0.00019178,2]
[373493436,1753021854758,-423.26769694,0.00019178,2]
[373493438,1753021854767,-460.0,0.00019178,2]
[373493440,1753021854776,-460.0,0.00019178,2]
[373493442,1753021854785,-460.0,0.00019178,2]
[373493444,1753021854794,-460.0,0.00019178,2]
[373493446,1753021854804,-460.0,0.00019178,2]
[373493448,1753021854813,-1251.21,0.00019178,2]
[373493450,1753021854823,-460.0,0.00019178,2]
[373493452,1753021854833,-460.0,0.00019178,2]
[373493454,1753021854843,-460.0,0.00019178,2]
[373493456,1753021854853,-1244.55,0.00019178,2]
[373493458,1753021854863,-460.0,0.00019178,2]
[373493460,1753021854873,-2118.56,0.00019178,2]
[373493462,1753021854883,-460.0,0.00019178,2]
[373493464,1753021854895,-569.87,0.00019178,2]
[373493466,1753021854905,-2352.75,0.00019178,2]
[373493468,1753021854914,-460.0,0.00019178,2]
[373493470,1753021854924,-460.0,0.00019178,2]
[373493472,1753021854933,-460.0,0.00019178,2]
[373493474,1753021854942,-460.0,0.00019178,2]
[373493476,1753021854952,-460.0,0.00019178,2]
[373493478,1753021854962,-472.49,0.00019178,2]
[373493480,1753021854972,-460.0,0.00019178,2]
[373493482,1753021854981,-745.04,0.00019178,2]
[373493484,1753021854998,-460.0,0.00019178,2]
[373493486,1753021855007,-460.0,0.00019178,2]
[373493488,1753021855017,-460.0,0.00019178,2]
[373493490,1753021855027,-460.0,0.00019178,2]
[373493492,1753021855036,-1885.51,0.00019178,2]
[373493494,1753021855046,-593.12973816,0.00019178,2]
[373493496,1753021855059,-881.77,0.00019178,2]
[373493498,1753021855069,-460.0,0.00019178,2]
[373493500,1753021855078,-460.0,0.00019178,2]
[373493502,1753021855087,-460.0,0.00019178,2]
[373493504,1753021855098,-460.0,0.00019178,2]
[373493506,1753021855107,-1238.54,0.00019178,2]
[373493508,1753021855118,-460.0,0.00019178,2]
[373493510,1753021855129,-460.0,0.00019178,2]
[373493512,1753021855138,-2303.99,0.00019178,2]
[373493514,1753021855147,-570.6,0.00019178,2]
[373493516,1753021855157,-481.67,0.00019178,2]
[373493518,1753021855167,-497.66,0.00019178,2]
[373493520,1753021855177,-631.63,0.00019178,2]
[373493522,1753021855186,-460.0,0.00019178,2]
[373493524,1753021855196,-485.45,0.00019178,2]
[373493526,1753021855206,-460.0,0.00019178,2]
[373493528,1753021855216,-460.0,0.00019178,2]
[373493530,1753021855226,-1438.23,0.00019178,2]
[373493532,1753021855236,-542.2,0.00019178,2]
[373493534,1753021855246,-460.0,0.00019178,2]
[373493536,1753021855255,-151.0,0.00019178,2]
[373493538,1753021855265,-512.76,0.00019178,2]
[373493540,1753021855276,-460.0,0.00019178,2]
[373493542,1753021855286,-460.0,0.00019178,2]
[373493544,1753021855296,-1959.4,0.00019178,2]
[373493546,1753021855306,-460.0,0.00019178,2]
[373493548,1753021855315,-618.55,0.00019178,2]
[373493550,1753021855324,-460.0,0.00019178,2]
[373493552,1753021855333,-507.14,0.00019178,2]
[373493554,1753021855343,-460.0,0.00019178,2]
[373493556,1753021855353,-460.0,0.00019178,2]
[373493558,1753021855362,-5000.0,0.00019178,2]
[373493560,1753021855372,-666.0,0.00019178,2]
[373493562,1753021855382,-158.658992,0.00019178,2]
[373493564,1753021855392,-303.08182694,0.00019278,2]
[373493566,1753021855402,-517.94766044,0.00019285,2]
[373493568,1753021855412,-500.0,0.00019295,2]
[373493570,1753021855423,-151.0,0.00019329,2]
[373493572,1753021855432,-151.0,0.00019329,2]
[373493574,1753021855442,-151.0,0.00019329,2]
[373493576,1753021855453,-151.0,0.00019329,2]
[373493578,1753021855463,-153.370387,0.00019329,2]
[373493580,1753021855474,-151.0,0.00019329,2]
[373493582,1753021855488,-30257.81230337,0.00019329,2]
[373493584,1753021855500,-5491.95153547,0.00019383,2]
[373493586,1753021855510,-151.0,0.000194,2]
[373493588,1753021855520,-700.0,0.0001942,2]
[373493590,1753021855530,-268.240692,0.00019424,2]
[373493592,1753021855540,-268.240692,0.00019424,2]
[373493594,1753021855550,-224.761876,0.00019424,2]
[373493595,1753021855560,-224.761876,0.00019424,2]
[373493596,1753021855570,-7235.49339341,0.0001945,2]
[373493597,1753021855579,-796.04,0.00019452,2]
[373493598,1753021855589,-3955.89,0.00019452,2]
[373493599,1753021855599,-1823.23,0.00019452,2]
[373493600,1753021855608,-460.0,0.00019452,2]
[373493601,1753021855618,-460.0,0.00019452,2]
[373493602,1753021855628,-796.05,0.00019452,2]
[373493603,1753021855638,-460.0,0.00019452,2]
[373493604,1753021855648,-460.0,0.00019452,2]
[373493605,1753021855657,-3230.43,0.00019452,2]
[373493606,1753021855667,-1296.1,0.00019452,2]
[373493607,1753021855676,-460.0,0.00019452,2]
[373493608,1753021855686,-460.0,0.00019452,2]
[373493609,1753021855696,-460.0,0.00019452,2]
[373493610,1753021855706,-151.0,0.00019452,2]
[373493611,1753021855716,-460.0,0.00019452,2]
[373493612,1753021855725,-460.0,0.00019452,2]
[373493613,1753021855736,-460.0,0.00019452,2]
[373493614,1753021855745,-1251.21,0.00019452,2]
[373493615,1753021855755,-512.848631,0.00019452,2]
[373493616,1753021855765,-460.0,0.00019452,2]
[373493617,1753021855775,-512.848631,0.00019452,2]
[373493618,1753021855785,-460.0,0.00019452,2]
[373493619,1753021855795,-460.0,0.00019452,2]
[373493620,1753021855805,-1244.55,0.00019452,2]
[373493621,1753021855814,-460.0,0.00019452,2]
[373493622,1753021855823,-2118.56,0.00019452,2]
[373493623,1753021855833,-460.0,0.00019452,2]
[373493624,1753021855843,-569.87,0.00019452,2]
[373493626,1753021855852,-2352.75,0.00019452,2]
[373493627,1753021855861,-460.0,0.00019452,2]
[373493629,1753021855871,-460.0,0.00019452,2]
[373493631,1753021855880,-243.20824511,0.00019452,2]
[373493633,1753021855890,-460.0,0.00019452,2]
[373493636,1753021855900,-460.0,0.00019452,2]
[373493638,1753021855910,-472.49,0.00019452,2]
[373493640,1753021855919,-460.0,0.00019452,2]
[373493642,1753021855930,-745.04,0.00019452,2]
[373493644,1753021855940,-460.0,0.00019452,2]
[373493646,1753021855949,-460.0,0.00019452,2]
[373493648,1753021855959,-460.0,0.00019452,2]
[373493650,1753021855968,-460.0,0.00019452,2]
[373493652,1753021855977,-1885.51,0.00019452,2]
[373493654,1753021855987,-881.77,0.00019452,2]
[373493656,1753021855997,-460.0,0.00019452,2]
[373493658,1753021856007,-460.0,0.00019452,2]
[373493660,1753021856016,-460.0,0.00019452,2]
[373493662,1753021856026,-460.0,0.00019452,2]
[373493664,1753021856035,-1238.54,0.00019452,2]
[373493666,1753021856045,-460.0,0.00019452,2]
[373493668,1753021856056,-460.0,0.00019452,2]
[373493670,1753021856067,-2303.99,0.00019452,2]
[373493672,1753021856077,-570.6,0.00019452,2]
[373493674,1753021856087,-481.67,0.00019452,2]
[373493676,1753021856097,-497.66,0.00019452,2]
[373493678,1753021856107,-631.63,0.00019452,2]
[373493680,1753021856116,-460.0,0.00019452,2]
[373493682,1753021856127,-485.45,0.00019452,2]
[373493684,1753021856137,-460.0,0.00019452,2]
[373493686,1753021856148,-460.0,0.00019452,2]
[373493688,1753021856158,-1438.23,0.00019452,2]
[373493690,1753021856168,-542.2,0.00019452,2]
[373493692,1753021856177,-460.0,0.00019452,2]
[373493694,1753021856187,-512.76,0.00019452,2]
[373493696,1753021856196,-460.0,0.00019452,2]
[373493698,1753021856205,-460.0,0.00019452,2]
[373493700,1753021856215,-1959.4,0.00019452,2]
[373493702,1753021856225,-460.0,0.00019452,2]
[373493704,1753021856235,-618.55,0.00019452,2]
[373493706,1753021856245,-460.0,0.00019452,2]
[373493708,1753021856255,-507.14,0.00019452,2]
[373493710,1753021856265,-460.0,0.00019452,2]
[373493712,1753021856274,-158.1957331,0.00019465,2]
[373493714,1753021856284,-500.0,0.00019465,2]
[373493716,1753021856294,-500.0,0.00019465,2]
[373493718,1753021856303,-500.0,0.00019465,2]
[373493720,1753021856314,-500.0,0.00019465,2]
[373493722,1753021856324,-160.00964404,0.00019465,2]
[373493724,1753021856333,-501.91390619,0.00019465,2]
[373493726,1753021856343,-500.0,0.00019465,2]
[373493728,1753021856352,-500.0,0.00019465,2]
[373493730,1753021856362,-500.0,0.00019465,2]
[373493732,1753021856372,-500.0,0.00019465,2]
[373493734,1753021856381,-502.33390025,0.00019465,2]
[373493736,1753021856391,-500.0,0.00019465,2]
[373493738,1753021856400,-500.0,0.00019465,2]
[373493741,1753021856410,-500.0,0.00019465,2]
[373493743,1753021856419,-500.0,0.00019465,2]
[373493745,1753021856428,-303.08182694,0.00019467,2]
[373493747,1753021856438,-587.0,0.00019504,2]
[373493749,1753021856448,-260.0,0.00019515,2]
[373493750,1753021856457,-168.0,0.00019603,2]
[373493753,1753021856467,-500.0,0.00019626,2]
[373493754,1753021856477,-500.0,0.00019626,2]
[373493756,1753021856488,-304.94079644,0.00019656,2]
[373493758,1753021856498,-5491.95153547,0.00019659,2]
[373493761,1753021856508,-480.5,0.00019666,2]
[373493763,1753021856517,-7235.49339341,0.00019681,2]
[373493765,1753021856527,-599.530675,0.00019685,2]
[373493767,1753021856538,-151.0,0.00019685,2]
[373493769,1753021856547,-599.530675,0.00019685,2]
[373493771,1753021856557,-152.1544,0.00019685,2]
[373493773,1753021856567,-500.0,0.00019689,2]
[373493775,1753021856576,-500.0,0.00019689,2]
[373493777,1753021856586,-500.0,0.00019689,2]
[373493779,1753021856598,-500.0,0.00019689,2]
[373493781,1753021856608,-505.21196279,0.00019689,2]
[373493783,1753021856617,-158.19723148,0.00019689,2]
[373493785,1753021856627,-347.71283598,0.00019689,2]
[373493787,1753021856637,-500.0,0.00019689,2]
[373493789,1753021856646,-500.0,0.00019689,2]
[373493791,1753021856656,-158.48796273,0.00019689,2]
[373493793,1753021856665,-500.0,0.00019689,2]
[373493795,1753021856675,-152.18081814,0.00019689,2]
[373493797,1753021856685,-500.0,0.00019689,2]
[373493799,1753021856695,-158.19550401,0.00019689,2]
[373493801,1753021856705,-796.04,0.00019726,2]
[373493803,1753021856714,-3955.89,0.00019726,2]
[373493805,1753021856724,-1823.23,0.00019726,2]
[373493807,1753021856734,-460.0,0.00019726,2]
[373493809,1753021856744,-460.0,0.00019726,2]
[373493811,1753021856754,-796.05,0.00019726,2]
[373493813,1753021856764,-475.11,0.00019726,2]
[373493815,1753021856773,-333.73833604,0.00019726,2]
[373493817,1753021856783,-3230.43,0.00019726,2]
[373493819,1753021856792,-1296.1,0.00019726,2]
[373493821,1753021856802,-460.0,0.00019726,2]
[373493823,1753021856812,-460.0,0.00019726,2]
[373493825,1753021856822,-460.0,0.00019726,2]
[373493827,1753021856832,-1157.37856763,0.00019726,2]
[373493829,1753021856842,-550.92734134,0.00019726,2]
[373493831,1753021856851,-460.0,0.00019726,2]
[373493833,1753021856861,-466.81381978,0.00019726,2]
[373493835,1753021856871,-1251.21,0.00019726,2]
[373493837,1753021856880,-460.0,0.00019726,2]
[373493839,1753021856890,-460.0,0.00019726,2]
[373493841,1753021856900,-460.0,0.00019726,2]
[373493843,1753021856910,-1244.55,0.00019726,2]
[373493845,1753021856920,-460.0,0.00019726,2]
[373493847,1753021856930,-2118.56,0.00019726,2]
[373493849,1753021856940,-460.0,0.00019726,2]
[373493851,1753021856950,-569.87,0.00019726,2]
[373493853,1753021856959,-2352.75,0.00019726,2]
[373493855,1753021856969,-460.0,0.00019726,2]
[373493857,1753021856979,-460.0,0.00019726,2]
[373493859,1753021856989,-460.0,0.00019726,2]
[373493862,1753021856999,-460.0,0.00019726,2]
[373493863,1753021857008,-472.49,0.00019726,2]
[373493865,1753021857017,-460.0,0.00019726,2]
[373493867,1753021857027,-745.04,0.00019726,2]
[373493869,1753021857037,-460.0,0.00019726,2]
[373493871,1753021857046,-460.0,0.00019726,2]
[373493873,1753021857059,-460.0,0.00019726,2]
[373493876,1753021857069,-460.0,0.00019726,2]
[373493878,1753021857079,-1885.51,0.00019726,2]
[373493880,1753021857088,-881.77,0.00019726,2]
[373493882,1753021857099,-460.0,0.00019726,2]
[373493883,1753021857109,-460.0,0.00019726,2]
[373493885,1753021857119,-460.0,0.00019726,2]
[373493887,1753021857128,-1238.54,0.00019726,2]
[373493890,1753021857138,-460.0,0.00019726,2]
[373493892,1753021857148,-460.0,0.00019726,2]
[373493893,1753021857157,-2303.99,0.00019726,2]
[373493896,1753021857167,-570.6,0.00019726,2]
[373493897,1753021857177,-481.67,0.00019726,2]
[373493899,1753021857186,-497.66,0.00019726,2]
[373493901,1753021857196,-631.63,0.00019726,2]
[373493904,1753021857206,-460.0,0.00019726,2]
[373493906,1753021857215,-485.45,0.00019726,2]
[373493908,1753021857225,-460.0,0.00019726,2]
[373493910,1753021857235,-1438.23,0.00019726,2]
[373493912,1753021857244,-542.2,0.00019726,2]
[373493914,1753021857254,-460.0,0.00019726,2]
[373493916,1753021857263,-512.76,0.00019726,2]
[373493918,1753021857273,-460.0,0.00019726,2]
[373493920,1753021857283,-460.0,0.00019726,2]
[373493922,1753021857292,-1959.4,0.00019726,2]
[373493924,1753021857302,-460.0,0.00019726,2]
[373493926,1753021857311,-618.55,0.00019726,2]
[373493928,1753021857321,-460.0,0.00019726,2]
[373493930,1753021857330,-507.14,0.00019726,2]
[373493932,1753021857341,-460.0,0.00019726,2]
[373493934,1753021857350,-230.4481837,0.00019726,3]
[373493936,1753021857360,-500.0,0.00019726,2]
[373493938,1753021857369,-274.06147548,0.00019726,2]
[373493940,1753021857379,-502.06587387,0.00019753,2]
[373493942,1753021857388,-151.0,0.00019762,2]
[373493944,1753021857398,-151.0,0.00019762,2]
[373493946,1753021857408,-151.0,0.00019762,2]
[373493948,1753021857417,-472.07520401,0.00019767,2]
[373493950,1753021857427,-151.0,0.00019792,2]
[373493952,1753021857435,-203.19342844,0.00019792,2]
[373493954,1753021857445,-151.0,0.00019792,2]
[373493956,1753021857455,-151.0,0.00019792,2]
[373493958,1753021857464,-151.0,0.00019792,2]
[373493960,1753021857473,-151.0,0.00019792,2]
[373493962,1753021857483,-500.0,0.00019792,2]
[373493964,1753021857493,-500.0,0.00019792,2]
[373493966,1753021857502,-151.0,0.00019792,2]
[373493968,1753021857512,-500.0,0.00019792,2]
[373493970,1753021857521,-151.0,0.00019792,2]
[373493972,1753021857531,-151.0,0.00019792,2]
[373493974,1753021857540,-151.0,0.00019792,2]
[373493976,1753021857550,-500.0,0.00019792,2]
[373493978,1753021857560,-151.0,0.00019792,2]
[373493980,1753021857570,-151.0,0.00019792,2]
[373493982,1753021857580,-151.0,0.00019792,2]
[373493984,1753021857589,-500.0,0.00019792,2]
[373493986,1753021857599,-151.0,0.00019792,2]
[373493988,1753021857609,-151.0,0.00019792,2]
[373493990,1753021857619,-151.0,0.00019792,2]
[373493992,1753021857629,-151.0,0.00019792,2]
[373493994,1753021857638,-151.0,0.00019792,2]
[373493996,1753021857648,-151.0,0.00019792,2]
[373493998,1753021857659,-500.0,0.00019792,2]
[373494013,1753021857790,-500.0,0.00019792,2]
[373494015,1753021857799,-712.4,0.00019793,2]
[373494017,1753021857809,-4624.88475626,0.0001984,2]
[373494019,1753021857818,-7235.49339341,0.00019842,2]
[373494021,1753021857827,-1000.0,0.00019843,2]
[373494023,1753021857836,-500.0,0.00019882,2]
[373494025,1753021857845,-2970.84930476,0.000199,2]
[373494027,1753021857855,-5491.95153547,0.00019934,2]
[373494029,1753021857865,-796.04,0.0002,2]
[373494031,1753021857874,-3955.89,0.0002,2]
[373494033,1753021857884,-1823.23,0.0002,2]
[373494035,1753021857893,-460.0,0.0002,2]
[373494037,1753021857902,-561.34,0.0002,2]
[373494038,1753021857913,-796.05,0.0002,2]
[373494040,1753021857922,-3230.43,0.0002,2]
[373494043,1753021857935,-1296.1,0.0002,2]
[373494045,1753021857945,-460.0,0.0002,2]
[373494046,1753021857954,-460.0,0.0002,2]
[373494048,1753021857964,-460.0,0.0002,2]
[373494051,1753021857974,-460.0,0.0002,2]
[373494052,1753021857984,-1251.21,0.0002,2]
[373494055,1753021857994,-460.0,0.0002,2]
[373494056,1753021858003,-460.0,0.0002,2]
[373494058,1753021858012,-460.0,0.0002,2]
[373494060,1753021858023,-1244.55,0.0002,2]
[373494062,1753021858032,-460.0,0.0002,2]